{"text_format":"1","workbook":"xlsx","n_sheets":3,"sheets":["Formato","Instructivo de Diligenciamiento","Listas"],"not_rendered":{"charts":0,"images":3,"macros":1,"external_links":0,"defined_names":3,"comments":0,"pivot_tables":0},"unopened":[],"bounds":{"document_bytes":16777216,"sheet_cells":100000,"rows_first":2000,"rows_last":500,"rows_between":2000,"halvings":0,"cell_chars":16384,"cell_head_chars":4096},"cells_cut":0,"cells_raw":0,"read":"whole","date_system":"1900"}

{"sheet":"Formato","index":0,"n_rows":77,"n_cols":17,"rows_kept":77,"cut":false,"hidden":false,"merged":[[61,2,61,3],[61,8,61,9],[61,10,61,11],[61,16,61,17],[62,2,62,3],[62,8,62,9],[62,10,62,11],[62,16,62,17],[59,2,59,3],[59,8,59,9],[59,10,59,11],[59,16,59,17],[60,2,60,3],[60,8,60,9],[60,10,60,11],[60,16,60,17],[57,2,57,3],[57,8,57,9],[57,10,57,11],[57,16,57,17],[58,2,58,3],[58,8,58,9],[58,10,58,11],[58,16,58,17],[55,2,55,3],[55,8,55,9],[55,10,55,11],[55,16,55,17],[56,2,56,3],[56,8,56,9],[56,10,56,11],[56,16,56,17],[53,2,53,3],[53,8,53,9],[53,10,53,11],[53,16,53,17],[54,2,54,3],[54,8,54,9],[54,10,54,11],[54,16,54,17],[51,2,51,3],[51,8,51,9],[51,10,51,11],[51,16,51,17],[52,2,52,3],[52,8,52,9],[52,10,52,11],[52,16,52,17],[49,2,49,3],[49,8,49,9],[49,10,49,11],[49,16,49,17],[50,2,50,3],[50,8,50,9],[50,10,50,11],[50,16,50,17],[47,2,47,3],[47,8,47,9],[47,10,47,11],[47,16,47,17],[48,2,48,3],[48,8,48,9],[48,10,48,11],[48,16,48,17],[45,2,45,3],[45,8,45,9],[45,10,45,11],[45,16,45,17],[46,2,46,3],[46,8,46,9],[46,10,46,11],[46,16,46,17],[43,2,43,3],[43,8,43,9],[43,10,43,11],[43,16,43,17],[44,2,44,3],[44,8,44,9],[44,10,44,11],[44,16,44,17],[1,1,1,13],[7,1,7,2],[11,1,11,2],[23,9,23,13],[25,1,25,2],[25,4,25,5],[25,6,25,8],[25,9,25,10],[25,11,25,13],[11,3,11,9],[9,10,9,11],[9,12,9,13],[2,1,2,13],[13,1,13,13],[15,1,15,2],[4,1,5,3],[4,10,5,11],[4,7,5,9],[4,4,5,5],[15,3,15,7],[27,9,27,10],[21,1,21,13],[7,3,7,9],[9,1,9,2],[9,3,9,7],[7,12,7,13],[23,1,23,2],[23,4,23,8],[19,1,19,13],[27,1,27,2],[27,4,27,5],[27,6,27,8],[27,11,27,13],[29,1,29,2],[29,4,29,5],[29,9,29,10],[31,1,31,2],[31,4,31,5],[31,9,31,10],[31,6,31,8],[29,6,29,8],[31,11,31,13],[76,13,77,14],[17,1,17,13],[74,4,74,5],[70,10,71,12],[72,10,73,12],[74,10,75,12],[76,10,77,12],[70,13,71,14],[72,13,73,14],[74,13,75,14],[39,2,39,3],[39,8,39,9],[29,11,29,13],[74,1,74,3],[37,1,37,9],[37,10,37,17],[35,0,35,17],[76,0,77,0],[76,1,77,2],[39,16,39,17],[74,6,74,8],[73,1,73,3],[68,1,68,3],[71,1,71,3],[71,6,71,8],[73,6,73,8],[37,0,38,0],[38,8,38,9],[38,2,38,3],[38,16,38,17],[41,2,41,3],[40,2,40,3],[40,8,40,9],[40,10,40,11],[40,16,40,17],[38,10,38,11],[39,10,39,11],[63,2,63,3],[63,8,63,9],[63,10,63,11],[63,16,63,17],[41,8,41,9],[41,10,41,11],[41,16,41,17],[42,2,42,3],[42,8,42,9],[42,10,42,11],[42,16,42,17]]}
[]
[null,"FORMATO PARA MODIFICACIÓN DE ÓRDENES DE COMPRA"]
[null,"Tienda Virtual del Estado Colombiano"]
[]
[null,"Número de Orden de Compra a modificar:",null,null,745,null,null,"Número de modificación de la Orden de Compra:",null,null,1]
[]
[]
[null,"Entidad Compradora:",null,"AGENCIA NACIONAL DE MINERÍA",null,null,null,null,null,null,null,"NIT:","900500018-2"]
[]
[null,"Nombre del solicitante:",null,"SORAYA CARDONA ROJAS",null,null,null,null,null,null,"Teléfono de contacto:",null,2201999]
[]
[null,"Proveedor :",null,"IFX NETWORKS COLOMBIA SAS"]
[]
[null,"Tipo "]
[]
[null,"Tipo",null,"Modificación de la Orden de Compra"]
[]
[null,"Justificación de la modificación o de las acciones a realizar"]
[]
[null,"Este servicio, es considerado por la Entidad como uno de los más críticos, puesto que a través de él se brinda todos los servicios de red, tales como intranet, internet, acceso a aplicaciones misionales y de apoyo, servicios de telefonía y videoconferencia, así mismo el servicio de conectividad permite la constante comunicación entre los funcionarios de una sede con otra, así como la consulta de los servicios que presta la Entidad a los usuarios externos sin ninguna restricción, garnaitzando asi la continuidad del servivio y el desarrollo de las funciones  propias de la ANM para apoyar los servicios de infraestructura, y que le permitan a lEnitdad estar en capacidad de desarrollar su objeto legal plenamente y contar con una oferta de servicios que cumpla requisitos de factibilidad tecnica y la viabilidad economica en terminos de costos eficientes de acceso a dicha infraestructura, encaminada a permitir la comunicación a la ANM tanto interna como externamente."]
[]
[null,"Modificación información general"]
[]
[null,"Nombre del campo",null,"¿Requiere modificación Si/No?","Datos actuales",null,null,null,null,"Nuevos datos"]
[]
[null,"Actualizar supervisor",null,"SI","Nombre del supervisor actual",null,"Nancy del Pilar Valencia Trujillo",null,null,"Nombre nuevo supervisor",null,"Soraya Cardona Rojas"]
[]
[null,"Fecha de vencimiento",null,"Ampliar fecha","Fecha vencimiento actual",null,"2015-11-30",null,null,"Nueva fecha de vencimiento",null,"2015-12-31"]
[]
[null,"Dirección y/o teléfono",null,"NO","Dirección / teléfono actual",null,null,null,null,"Nueva dirección / teléfono"]
[]
[null,"Gravámenes adicionales",null,"NO","Gravamen(es) actual",null,null,null,null,"Nuevo(s) gravamen(es)"]
[]
[]
[]
["Modificación de artículos y servicios"]
[]
["Tipo de modificación","Información actual",null,null,null,null,null,null,null,null,"Nueva información"]
[null,"Número de la línea según O.C.","Nombre del artículo",null,"Cantidad","Unidad de medida","Precio unitario","Total","Información presupuestal",null,"Nombre del artículo",null,"Cantidad","Unidad de medida","Precio unitario","Total","Información presupuestal"]
["Agregar nuevo artículo o servicio","No aplica","No aplica",null,"No aplica","No aplica","No aplica",0,"No aplica",null,"1.12 - Enlace dedicado 10Mbps - Mes - Nivel Plata",null,2.5,"Mes",1856000,{"$f":"M40*O40","v":4640000},"CDP N° 3315 del 1 de junio de 2015"]
["Modificación de artículo o servicio",1,"1.12 - Enlace dedicado 10Mbps - Mes\nCalle 32E # 76 - 76 Barrio Laureles Medellin",null,12,"mes",1301000,{"$f":"E41*G41","v":15612000},"CDP N° 35014 del 01 de agosto de 2014 y vigencias futuras referencia 1-2014-068623.",null,"1.12 - Enlace dedicado 10Mbps - Mes-Calle 32E # 76 - 76 Barrio Laureles Medellin",null,13,"Mes",1301000,16913000,"CDP N° 3315 del 1 de junio de 2015"]
["Modificación de artículo o servicio",2,"1.103 - Enlace dedicado Región 4 - 10Mbps - Mes- Km 5 Vía Nobsa – Sogamoso, Sector Chámeza -Nobsa",null,12,"mes",1511000,18132000,"CDP N° 35014 del 01 de agosto de 2014 y vigencias futuras referencia 1-2014-068623.",null,{"$f":"C42","v":"1.103 - Enlace dedicado Región 4 - 10Mbps - Mes- Km 5 Vía Nobsa – Sogamoso, Sector Chámeza -Nobsa"},null,13,"Mes",1511000,19643000,"CDP N° 3315 del 1 de junio de 2015"]
["Modificación de artículo o servicio",3,"1.94 - Enlace dedicado Región 3 - 10Mbps - Mes -Carrera 8 N-19-31 Barrio Interlaken - Ibague",null,12,"mes",1602000,19224000,"CDP N° 35014 del 01 de agosto de 2014 y vigencias futuras referencia 1-2014-068623.",null,"1.94 - Enlace dedicado Región 3 - 10Mbps - Mes -Carrera 8 N-19-31 Barrio Interlaken - Ibague",null,13,"Mes",1602000,20826000,"CDP N° 3315 del 1 de junio de 2015"]
["Modificación de artículo o servicio",4,"1.94 - Enlace dedicado Región 3 - 10Mbps - Mes-Calle 13 A # 1E-103 Caobos Cúcuta, Colombia",null,12,"mes",1602000,19224000,"CDP N° 35014 del 01 de agosto de 2014 y vigencias futuras referencia 1-2014-068623.",null,"1.94 - Enlace dedicado Región 3 - 10Mbps - Mes-Calle 13 A # 1E-103 Caobos Cúcuta, Colombia",null,13,"Mes",1602000,20826000,"CDP N° 3315 del 1 de junio de 2015"]
["Modificación de artículo o servicio",5,"1.103 - Enlace dedicado Región 4 - 10Mbps - Mes -Calle 11 # 8 - 79 Ofic. 202 - 203 Edificio Soa - Valledupar",null,12,"mes",1511000,18132000,"CDP N° 35014 del 01 de agosto de 2014 y vigencias futuras referencia 1-2014-068623.",null,"1.103 - Enlace dedicado Región 4 - 10Mbps - Mes -Calle 11 # 8 - 79 Ofic. 202 - 203 Edificio Soa - Valledupar",null,13,"Mes",1511000,19643000,"CDP N° 3315 del 1 de junio de 2015"]
["Modificación de artículo o servicio",6,"1.12 - Enlace dedicado 10Mbps - Mes\nNote: Calle 13ª # 100-35 Edificio Torre Empresarial Of. 201-202 - Cali",null,12,"mes",1301000,15612000,"CDP N° 35014 del 01 de agosto de 2014 y vigencias futuras referencia 1-2014-068623.",null,"1.12 - Enlace dedicado 10Mbps - Mes\nNote: Calle 13ª # 100-35 Edificio Torre Empresarial Of. 201-202 - Cali",null,13,"Mes",1301000,16913000,"CDP N° 3315 del 1 de junio de 2015"]
["Modificación de artículo o servicio",7,"1.94 - Enlace dedicado Región 3 - 10Mbps - Mes - CRA 20 Nº 24-71 Barrio Alarcon - Bucaramanga",null,12,"mes",1602000,19224000,"CDP N° 35014 del 01 de agosto de 2014 y vigencias futuras referencia 1-2014-068623.",null,"1.94 - Enlace dedicado Región 3 - 10Mbps - Mes - CRA 20 Nº 24-71 Barrio Alarcon - Bucaramanga",null,13,"Mes",1602000,20826000,"CDP N° 3315 del 1 de junio de 2015"]
["Modificación de artículo o servicio",8,"1.103 - Enlace dedicado Región 4 - 10Mbps - Mes-Calle 2 No. 23A-32 Capusigra Av. Panamericana - Pasto",null,12,"mes",1511000,18132000,"CDP N° 35014 del 01 de agosto de 2014 y vigencias futuras referencia 1-2014-068623.",null,"1.103 - Enlace dedicado Región 4 - 10Mbps - Mes-Calle 2 No. 23A-32 Capusigra Av. Panamericana - Pasto",null,13,"Mes",1511000,19643000,"CDP N° 3315 del 1 de junio de 2015"]
["Modificación de artículo o servicio",9,"1.94 - Enlace dedicado Región 3 - 10Mbps - Mes-Carrera 24A # 61-50 Barrio Estrella - Manizales",null,12,"mes",1602000,19224000,"CDP N° 35014 del 01 de agosto de 2014 y vigencias futuras referencia 1-2014-068623.",null,"1.94 - Enlace dedicado Región 3 - 10Mbps - Mes-Carrera 24A # 61-50 Barrio Estrella - Manizales",null,13,"Mes",1602000,20826000,"CDP N° 3315 del 1 de junio de 2015"]
["Modificación de artículo o servicio",10,"1.94 - Enlace dedicado Región 3 - 10Mbps - Mes-Cra 2 No. 12-125 Local 2 Edificio Minarete Bocagrande - Cartagena",null,12,"mes",1602000,19224000,"CDP N° 35014 del 01 de agosto de 2014 y vigencias futuras referencia 1-2014-068623.",null,"1.94 - Enlace dedicado Región 3 - 10Mbps - Mes-Cra 2 No. 12-125 Local 2 Edificio Minarete Bocagrande - Cartagena",null,13,"Mes",1602000,20826000,"CDP N° 3315 del 1 de junio de 2015"]
["Modificación de artículo o servicio",11,"1.103 - Enlace dedicado Región 4 - 10Mbps - Mes-Carrera 6 No. 28-01 segundo piso - Quibdó",null,12,"mes",1511000,18132000,"CDP N° 35014 del 01 de agosto de 2014 y vigencias futuras referencia 1-2014-068623.",null,"1.103 - Enlace dedicado Región 4 - 10Mbps - Mes-Carrera 6 No. 28-01 segundo piso - Quibdó",null,13,"Mes",1511000,19643000,"CDP N° 3315 del 1 de junio de 2015"]
["Modificación de artículo o servicio",12,"1.12 - Enlace dedicado 10Mbps - Mes\nNote: Calle 26 Carrera 50 Esquina - Bogotá",null,12,"mes",1301000,15612000,"CDP N° 35014 del 01 de agosto de 2014 y vigencias futuras referencia 1-2014-068623.",null,"1.12 - Enlace dedicado 10Mbps - Mes\nNote: Calle 26 Carrera 50 Esquina - Bogotá",null,13,"Mes",1301000,16913000,"CDP N° 3315 del 1 de junio de 2015"]
["Modificación de artículo o servicio",13,"1.93 - Enlace dedicado Región 3 - 6Mbps - Mes- Avenida Gran Colombia N° 12E - 96 PISO 2 / Edificio Terreos Barrio COLSAG – Universidad Francisco de Paula Santander (Cúcuta/Norte de Santander) - Estación de Salvamento Minero",null,12,"mes",1073000,12876000,"CDP N° 35014 del 01 de agosto de 2014 y vigencias futuras referencia 1-2014-068623.",null,"1.93 - Enlace dedicado Región 3 - 6Mbps - Mes- Avenida Gran Colombia N° 12E - 96 PISO 2 / Edificio Terreos Barrio COLSAG – Universidad Francisco de Paula Santander (Cúcuta/Norte de Santander) - Estación de Salvamento Minero",null,13,"Mes",1073000,13949000,"CDP N° 3315 del 1 de junio de 2015"]
["Modificación de artículo o servicio",14,"1.102 - Enlace dedicado Región 4 - 6Mbps - Mes-Calle 30 No. 30-179 Sector la Polca / Corregimiento Camilo C - Amaga - estación de salvamento minero",null,12,"mes",911000,10932000,"CDP N° 35014 del 01 de agosto de 2014 y vigencias futuras referencia 1-2014-068623.",null,"1.102 - Enlace dedicado Región 4 - 6Mbps - Mes-Calle 30 No. 30-179 Sector la Polca / Corregimiento Camilo C - Amaga - estación de salvamento minero",null,13,"Mes",911000,11843000,"CDP N° 3315 del 1 de junio de 2015"]
["Modificación de artículo o servicio",15,"1.102 - Enlace dedicado Región 4 - 6Mbps - Mes-Km 3 vía Jamundí- Potreritos, Jamundí-Valle del Cauca. - Estación de salvamento minero",null,12,"mes",911000,10932000,"CDP N° 35014 del 01 de agosto de 2014 y vigencias futuras referencia 1-2014-068623.",null,"1.102 - Enlace dedicado Región 4 - 6Mbps - Mes-Km 3 vía Jamundí- Potreritos, Jamundí-Valle del Cauca. - Estación de salvamento minero",null,13,"Mes",911000,11843000,"CDP N° 3315 del 1 de junio de 2015"]
["Modificación de artículo o servicio",16,"1.102 - Enlace dedicado Región 4 - 6Mbps - Mes-Km 1,5 vía Ubaté- Bogotá, vereda Tausavita, Ubaté- Cundinamarca- Estación de salvamento minero",null,12,"mes",911000,10932000,"CDP N° 35014 del 01 de agosto de 2014 y vigencias futuras referencia 1-2014-068623.",null,"1.102 - Enlace dedicado Región 4 - 6Mbps - Mes-Km 1,5 vía Ubaté- Bogotá, vereda Tausavita, Ubaté- Cundinamarca- Estación de salvamento minero",null,13,"Mes",911000,11843000,"CDP N° 3315 del 1 de junio de 2015"]
["Modificación de artículo o servicio",17,"1.102 - Enlace dedicado Región 4 - 6Mbps - Mes-Calle 27 No. 9 este 25 La carolina (frente a Corponariño)- Pasto- Estación de Salvamento minero",null,12,"mes",911000,10932000,"CDP N° 35014 del 01 de agosto de 2014 y vigencias futuras referencia 1-2014-068623.",null,"1.102 - Enlace dedicado Región 4 - 6Mbps - Mes-Calle 27 No. 9 este 25 La carolina (frente a Corponariño)- Pasto- Estación de Salvamento minero",null,13,"Mes",911000,11843000,"CDP N° 3315 del 1 de junio de 2015"]
["Modificación de artículo o servicio",18,"1.102 - Enlace dedicado Región 4 - 6Mbps - Mes-Vereda el Llano, Escuela de Minas, Marmato-Caldas - Estación de Salvamento minero",null,12,"mes",911000,10932000,"CDP N° 35014 del 01 de agosto de 2014 y vigencias futuras referencia 1-2014-068623.",null,"1.102 - Enlace dedicado Región 4 - 6Mbps - Mes-Vereda el Llano, Escuela de Minas, Marmato-Caldas - Estación de Salvamento minero",null,13,"Mes",911000,11843000,"CDP N° 3315 del 1 de junio de 2015"]
["Modificación de artículo o servicio",19,"1.102 - Enlace dedicado Región 4 - 6Mbps - Mes-Carrera 18 No. 11-85 Barrio la Avanzada, Juan Pablo II – Remedios Antioquia- Estación de salvamento minero",null,12,"mes",911000,10932000,"CDP N° 35014 del 01 de agosto de 2014 y vigencias futuras referencia 1-2014-068623.",null,"1.102 - Enlace dedicado Región 4 - 6Mbps - Mes-Carrera 18 No. 11-85 Barrio la Avanzada, Juan Pablo II – Remedios Antioquia- Estación de salvamento minero",null,13,"Mes",911000,11843000,"CDP N° 3315 del 1 de junio de 2015"]
["Modificación de artículo o servicio",20,"1.9 - Enlace dedicado Internet 512Mbps - Mes-AV Calle 26 No. 59-51 Torre 4 Piso 9 Oficina de Tecnología e Información -Bogota",null,12,"mes",21075000,252900000,"CDP N° 35014 del 01 de agosto de 2014 y vigencias futuras referencia 1-2014-068623.",null,"1.9 - Enlace dedicado Internet 512Mbps - Mes-AV Calle 26 No. 59-51 Torre 4 Piso 9 Oficina de Tecnología e Información -Bogota",null,13,"Mes",21075000,273975000,"CDP N° 3315 del 1 de junio de 2015"]
["Modificación de artículo o servicio",21,"1.8 - Enlace dedicado Internet 256Mbps - Mes-AV Calle 26 No. 59-51 Torre 4 Piso 9 Oficina de Tecnología e Información -Bogota",null,12,"mes",10076000,120912000,"CDP N° 35014 del 01 de agosto de 2014 y vigencias futuras referencia 1-2014-068623.",null,"1.8 - Enlace dedicado Internet 256Mbps - Mes-AV Calle 26 No. 59-51 Torre 4 Piso 9 Oficina de Tecnología e Información -Bogota",null,13,"Mes",10076000,130988000,"CDP N° 3315 del 1 de junio de 2015"]
["Modificación de artículo o servicio",22,"1.18 - Enlace dedicado 256Mbps - Mes-AV Calle 26 No. 59-51 Torre 4 Piso 9 Oficina de Tecnología e Información -Bogota",null,12,"mes",11068000,132816000,"CDP N° 35014 del 01 de agosto de 2014 y vigencias futuras referencia 1-2014-068623.",null,"1.18 - Enlace dedicado 256Mbps - Mes-AV Calle 26 No. 59-51 Torre 4 Piso 9 Oficina de Tecnología e Información -Bogota",null,13,"Mes",11068000,143884000,"CDP N° 3315 del 1 de junio de 2015"]
["Modificación de artículo o servicio",23,"1.18 - Enlace dedicado 256Mbps - Mes- AV Calle 26 No. 59-51 Torre 4 Piso 9 Oficina de Tecnología e Información -Bogota",null,12,"mes",9774000,117288000,"CDP N° 35014 del 01 de agosto de 2014 y vigencias futuras referencia 1-2014-068623.",null,"1.18 - Enlace dedicado 256Mbps - Mes- AV Calle 26 No. 59-51 Torre 4 Piso 9 Oficina de Tecnología e Información -Bogota",null,13,"Mes",9774000,127062000,"CDP N° 3315 del 1 de junio de 2015"]
["Agregar nuevo artículo o servicio","No aplica","No aplica",null,"No aplica","No aplica","No aplica",0,"No aplica",null,"Instalación - item 1.12- Enlace dedicado 10Mbps-Mes-Nivel Plata",null,1,"Unidad de medida",464000,{"$f":"M64*O64","v":464000},"CDP N° 3315 del 1 de junio de 2015"]
[]
[null,null,null,null,null,null,"TOTAL",{"$f":"SUM(H40:H64)","v":917868000},null,null,null,null,null,null,"TOTAL",{"$f":"SUM(P40:P64)","v":999461000}]
[]
[]
[]
[]
[null,null,null,null,null,null,null,null,null,null,"Valor total del IVA en la Orden de Compra:",null,null,{"$f":"P66*0.16","v":159913760}]
[null,"Firma ordenador del gasto",null,null,null,null,"Firma de Proveedor"]
[null,null,null,null,null,null,null,null,null,null,"Valor total del AIU en la Orden de Compra:"]
["Nombre:",null,null,null,null,"Nombre:"]
["Documento de Identidad:",null,null,null,"Documento de Identidad:",null,null,null,null,null,"Valor total gravámenes adicionales en la Orden de Compra:"]
[]
["Fecha Elaboracion:","2015-10-01",null,null,null,null,null,null,null,null,"Valor total de la Orden de Compra:",null,null,{"$f":"N75+P66","v":999461000}]

{"sheet":"Instructivo de Diligenciamiento","index":1,"n_rows":7,"n_cols":2,"rows_kept":7,"cut":false,"hidden":false,"merged":[[6,1,77,10]]}
[]
[]
[]
[]
[]
[]
[null,"Instrucciones de diligenciamiento:\n\nColombia Compra Eficiente ha diseñado este formato para que las Entidades Compradoras puedan realizar aclaraciones, modificaciones,  cancelaciones o liquidaciones  de las Órdenes de Compra que estén en ejecución y vigentes. Para ello debe indicar:\n \n1. Datos generales: Datos básicos como número de la Orden de Compra que requiere cambiar, número consecutivo de solicitud tenga en cuenta que la primera solicitud corresponderá a la número “1”, nombre de la Entidad Compradora, nombre de la persona que solicita las acciones, NIT de la Entidad Compradora y el nombre del Proveedor que ejecuta la Orden de Compra.\n\n2. Tipo: Las Entidades pueden solicitar cuatro tipos de acciones respecto de las Órdenes de Compra:\n\n(i) Aclaraciones: Son las indicaciones de cambio de información que no afectan el plazo, el valor o las condiciones contractuales de las Órdenes de Compra como: redacción en las condiciones de entrega, errores de digitación  o rectificación de la fecha de vencimiento. Estas aclaraciones no requieren de la aceptación del Proveedor. Sin embargo una vez realizada la aclaración en la Orden de Compra, la Entidad Compradora debe notificarle al Proveedor el cambio. \n\n(ii) Modificaciones: Son indicaciones de cambio en aumento o disminución de valor o plazo,  aumento o disminución de los bienes o servicios solicitados, cambios en las condiciones de ejecución o datos que afecten la ejecución de la Orden de Compra. Solo en los casos de cambio de supervisor y datos de notificación como dirección o teléfono se puede omitir la firma del Proveedor. Sin embargo una vez realizada la modificación, la Entidad Compradora debe notificarle al Proveedor el cambio.\n\n(iii) Cancelación: Es la manifestación de la Entidad de no ejecutar la totalidad de la Orden de Compra la cual también debe ser aceptada por el Proveedor.\n\n(iv) Liquidación: Es el ajuste formal y definitivo de las obligaciones derivadas de la Orden de Compra para establecer las acreencias pendientes a favor o en contra de cada parte de la Orden de Compra, así como para aclarar la ejecución de la misma. Se efectúa, cuando aplique, dentro de los términos establecidos en cada Acuerdo Marco de Precios. Se requiere la solicitud por parte de la Entidad Compradora firmada por el Ordenador del Gasto y el representante legal del Proveedor, así como el informe del supervisor de la Orden de Compra. \n\n3. Justificación: Las razones de la realización del cambio o la cancelación de la Orden de Compra.\n\n4. Especificar las modificaciones solicitadas a la información general de la Orden de Compra o la modificación detallada de los bienes y servicios así:\n\n(i) Modificación de información general: Modificaciones a: (a) nombre del supervisor; (b) fecha de vencimiento de la Orden de Compra; (c) dirección y/o teléfono de la Entidad Compradora; o (d) Gravámenes adicionales (estampillas), en todos los campos debe diligenciar la información actual  en la Orden de Compra y los nueva información.\n\n(ii) Modificación de los artículos y/o servicios: \n\n(a) Modificaciones a los artículos o servicios: Adicionar o disminuir en cantidades un producto que fue adquirido en la Orden de Compra inicial. La Entidad debe identificar en los campos de “información actual”: (i) el número de la línea del artículo que lo puede consultar en la Orden de Compra (ii) el artículo adquirido inicialmente; (iii) las unidades de medida; (iv) las cantidades adquiridas; (v) los precios de la compra; y (vi) la información presupuestal. Para modificar o agregar nuevos artículos la Entidad Compradora debe identificar en el campo “nueva información”: (i) la cantidad final requerida; (ii) unidad de medida; (iii) precio unitario acordado previamente con el Proveedor el cual debe respetar lo dispuesto en el contrato correspondiente (precio techo, precio piso, etc.) y (iv) la información presupuestal que respalda el cambio o la inclusión.\n\n(b) Agregar nuevos artículos o servicios: Ingresar nuevos artículos que no se tenían contemplados en la Orden de Compra inicial. La Entidad Compradora debe previamente solicitarle al Proveedor el precio del artículo, el cual debe respetar lo dispuesto en el contrato correspondiente (precio techo, precio piso, etc.) y la Entidad Compradora lo debe indicar en el formato en el campo “nueva información”.\n\n(c) Eliminar artículos o servicios: Descartar artículos que la Entidad Compradora determine que no va a requerir durante la ejecución de la Orden de Compra. Para eliminar artículos la Entidad debe identificar en los campos de “información actual”: (i) el número de la línea del artículo que lo puede consultar en la Orden de Compra (ii) el artículo adquirido inicialmente; (iii) las unidades de medida; (iv) las cantidades adquiridas; (v) los precios de la compra; y (vi) la información presupuestal.\n\nEn esta sección la Entidad Compradora puede agregar tantas filas como artículos requiera modificar haciendo clic en el botón de Agregar registro o Eliminar registro.\n\n5. Consolidado de valores: Indicar en el recuadro el valor total del IVA, AUI, gravámenes adicionales y total de la Orden de Compra, estos campos serán los valores finales que quedarán en la Orden de Compra después de la modificación, tenga en cuenta que el campo de IVA no aplica para los AMP de papelería, vehículos y SOAT y que el campo de AIU solo aplica para aseo y cafetería.\n\n6. Firmas del documento: El ordenador del gasto de la Entidad Compradora debe firmar el documento y enviarlo al Proveedor para que lo acepte y firme, en caso de que así se requiera. El documento firmado debe ser enviado a través del aplicativo dispuesto por   Colombia Compra Eficiente para realizar las acciones solicitadas.\n\n7. Fecha de elaboración del documento: Corresponde a la fecha en la que la Entidad Compradora y el Proveedor llegaron a un acuerdo para realizar las acciones y se suscribe el documento, recuerde que para poder realizar modificaciones en las Órdenes de Compra las mismas se deben acordar dentro de la vigencia de la Orden de Compra. \n\nSi la Entidad Compradora requiere agregar archivos que estén relacionados con las acciones a realizar como: copia del CDP y/o aprobación de Vigencia Futura (VF) que soporta la adición, soportes documentales, correos, cartas, etc... debe publicarlos junto con el documento de solicitud de modificación suscrito en un único archivo Pdf, tenga en cuenta que Colombia Compra Eficiente únicamente realizara las modificaciones especificadas en el formato enviado por el aplicativo.\n"]

{"sheet":"Listas","index":2,"n_rows":5,"n_cols":3,"rows_kept":5,"cut":false,"hidden":true,"merged":[]}
["TipoDeModificacion",null,"Modificacion"]
["Modificación de la Orden de Compra",null,"Modificación de artículo o servicio"]
["Aclaración a la Orden de Compra",null,"Agregar nuevo artículo o servicio"]
["Cancelación de la Orden de Compra",null,"Eliminar artículo o servicio"]
["Liquidación de la Orden de Compra",null,"Ninguna"]